fUST/lending_fUST_20250726
["ID","MTS","AMOUNT","RATE_DAILY","PERIOD"]
[374983381,1753488659126,-641.9,0.00024649,2]
[374983382,1753488659135,-862.63,0.00024649,2]
[374983383,1753488659148,-151.0,0.00024649,7]
[374983384,1753488659159,-460.0,0.00024649,2]
[374983385,1753488659169,-819.06,0.00024649,2]
[374983386,1753488659179,-665.9,0.00024649,2]
[374983387,1753488659191,-706.17,0.00024649,2]
[374983388,1753488659267,-1173.02,0.00024685,2]
[374983389,1753488659278,-153.176922,0.000248,15]
[374983390,1753488659288,-7819.62083626,0.000248,2]
[374983391,1753488659298,-642.0,0.000248,2]
[374983392,1753488659308,-5901.63666191,0.0002482,2]
[374983393,1753488659318,-1383.53,0.00024821,2]
[374983394,1753488659328,-151.4394318,0.00024838,2]
[374983395,1753488659338,-500.0,0.00024857,2]
[374983396,1753488659347,-443.0,0.00024857,2]
[374983397,1753488659357,-153.176922,0.0002488,6]
[374983398,1753488659367,-37304.37486121,0.00024888,2]
[374983399,1753488659376,-153.176922,0.0002489,10]
[374983400,1753488659386,-2200.0,0.000249,2]
[374983401,1753488659395,-470.80474086,0.000249,2]
[374983402,1753488659405,-151.0,0.000249,7]
[374983403,1753488659414,-151.0,0.000249,8]
[374983404,1753488659423,-151.0,0.000249,9]
[374983405,1753488659433,-151.0,0.000249,5]
[374983406,1753488659443,-151.0,0.000249,6]
[374983407,1753488659453,-151.0,0.000249,7]
[374983408,1753488659463,-151.0,0.000249,5]
[374983409,1753488659472,-151.0,0.000249,7]
[374983410,1753488659482,-151.0,0.000249,7]
[374983411,1753488659492,-153.176922,0.000249,4]
[374983412,1753488659500,-153.176922,0.000249,5]
[374983413,1753488659510,-646010.79976895,0.000249,2]
[374983414,1753488659587,-45570.98897207,0.000249,2]
[374983415,1753488659674,-165.44,0.00019173,2]
[374983416,1753488659684,-460.0,0.00019717,2]
[374983417,1753488659694,-460.0,0.00019718,2]
[374983418,1753488659704,-541.77170341,0.00019991,2]
[374983419,1753488659714,-342.22579245,0.00019992,2]
[374983420,1753488659724,-460.0,0.00020809,2]
[374983421,1753488659734,-460.0,0.00021083,2]
[374983422,1753488659744,-326.69565911,0.00021357,2]
[374983423,1753488659755,-460.0,0.00022728,2]
[374983424,1753488659764,-460.0,0.00023002,2]
[374983425,1753488659775,-6011.08938693,0.000249,2]
[374983426,1753488660074,-528.47133107,0.00019614,2]
[374983427,1753488660084,-460.0,0.00019716,2]
[374983428,1753488660094,-460.0,0.0001999,2]
[374983429,1753488660105,-330.88,0.00020086,2]
[374983430,1753488660115,-460.0,0.00020264,2]
[374983431,1753488660125,-460.0,0.00020538,2]
[374983432,1753488660136,-460.0,0.00020812,2]
[374983433,1753488660151,-180.09789105,0.00020999,2]
[374983434,1753488660163,-316.23210895,0.00020999,2]
[374983435,1753488660174,-460.0,0.00021086,2]
[374983436,1753488660184,-460.0,0.0002136,2]
[374983437,1753488660194,-339.71,0.00021634,2]
[374983438,1753488660205,-321.0977766,0.00021912,2]
[374983439,1753488660218,-340.6722234,0.00021912,2]
[374983440,1753488660229,-312.16666667,0.0002219,7]
[374983441,1753488660241,-827.21,0.00022825,2]
[374983442,1753488660252,-992.65,0.00023738,2]
[374983443,1753488660262,-1158.09,0.00024651,2]
[374983444,1753488660271,-46.9819596,0.000249,2]
[374983445,1753488660284,-2042.845055,0.000249,2]
[374983446,1753488660298,-1321.87702452,0.000249,2]
[374983447,1753488660310,-670.79689604,0.000249,2]
[374983448,1753488660322,-4436.62769911,0.000249,2]
[374983466,1753489670846,179.979,0.00027397,120]
[374983467,1753489678581,166.278575,0.00013699,2]
[374983517,1753489831751,-300.7797852,0.00018613,2]
[374983569,1753489832263,-183.0,0.00019092,2]
[374983570,1753489832273,-150.0,0.00019192,2]
[374983571,1753489832282,-312.16666667,0.00019593,2]
[374983572,1753489832291,-1200.0,0.00019611,2]
[374983573,1753489832301,-635.53551241,0.00019612,2]
[374983574,1753489832311,-460.0,0.00019612,2]
[374983575,1753489832322,-460.0,0.00019612,2]
[374983576,1753489832332,-460.0,0.00019612,2]
[374983577,1753489832343,-460.0,0.00019612,2]
[374983578,1753489832352,-460.0,0.00019612,2]
[374983579,1753489832361,-460.0,0.00019612,2]
[374983580,1753489832370,-460.0,0.00019612,2]
[374983581,1753489832380,-460.0,0.00019612,2]
[374983582,1753489832388,-460.0,0.00019612,2]
[374983583,1753489832398,-460.0,0.00019612,2]
[374983584,1753489832407,-460.0,0.00019612,2]
[374983585,1753489832416,-460.0,0.00019612,2]
[374983586,1753489832425,-424.19779052,0.00019613,2]
[374983587,1753489832435,-460.0,0.00019613,2]
[374983588,1753489832444,-460.0,0.00019613,2]
[374983589,1753489832455,-466.90820524,0.00019613,2]
[374983590,1753489832464,-560.7721542,0.00019613,2]
[374983591,1753489832474,-460.0,0.00019613,2]
[374983592,1753489832485,-460.0,0.00019613,2]
[374983593,1753489832495,-460.0,0.00019613,2]
[374983594,1753489832505,-460.0,0.00019613,2]
[374983595,1753489832514,-460.0,0.00019613,2]
[374983596,1753489832522,-161.8942032,0.00019613,2]
[374983597,1753489832531,-460.0,0.00019613,2]
[374983598,1753489832540,-460.0,0.00019613,2]
[374983599,1753489832549,-588.58587348,0.00019613,2]
[374983600,1753489832559,-460.0,0.00019613,2]
[374983601,1753489832568,-331.78272404,0.00019613,2]
[374983602,1753489832577,-460.0,0.00019613,2]
[374983603,1753489832588,-460.0,0.00019613,2]
[374983604,1753489832597,-1275.77,0.00019613,2]
[374983606,1753489832606,-729.22,0.00019613,2]
[374983607,1753489832616,-554.8631452,0.00019613,2]
[374983608,1753489832627,-686.24,0.00019613,2]
[374983610,1753489832636,-551.25,0.00019613,2]
[374983611,1753489832646,-460.0,0.00019613,2]
[374983612,1753489832656,-460.0,0.00019613,2]
[374983613,1753489832666,-460.0,0.00019613,2]
[374983614,1753489832675,-460.0,0.00019613,2]
[374983615,1753489832685,-460.0,0.00019613,2]
[374983616,1753489832696,-460.0,0.00019614,2]
[374983617,1753489832707,-242.03143647,0.00019614,2]
[374983618,1753489832717,-460.0,0.00019614,2]
[374983619,1753489832728,-460.0,0.00019614,2]
[374983620,1753489832738,-460.0,0.00019614,2]
[374983621,1753489832748,-460.0,0.00019614,2]
[374983622,1753489832760,-460.0,0.00019614,2]
[374983623,1753489832770,-460.0,0.00019614,2]
[374983624,1753489832781,-460.0,0.00019614,2]
[374983625,1753489832791,-460.0,0.00019614,2]
[374983626,1753489832803,-562.60727901,0.00019614,2]
[374983627,1753489832813,-460.0,0.00019614,2]
[374983628,1753489832823,-460.0,0.00019614,2]
[374983629,1753489832832,-460.0,0.00019614,2]
[374983630,1753489832841,-460.0,0.00019614,2]
[374983631,1753489832851,-314.9923924,0.00019614,2]
[374983632,1753489832860,-460.0,0.00019614,2]
[374983633,1753489832871,-460.0,0.00019614,2]
[374983634,1753489832881,-459.84158368,0.00019614,2]
[374983635,1753489832892,-460.0,0.00019614,2]
[374983636,1753489832902,-460.0,0.00019614,2]
[374983637,1753489832912,-469.64618594,0.00019614,2]
[374983638,1753489832921,-460.0,0.00019614,2]
[374983639,1753489832932,-460.0,0.00019614,2]
[374983640,1753489832941,-460.0,0.00019614,2]
[374983641,1753489832951,-460.0,0.00019614,2]
[374983642,1753489832960,-460.0,0.00019614,2]
[374983643,1753489832970,-460.0,0.00019614,2]
[374983644,1753489832979,-460.0,0.00019614,2]
[374983645,1753489832988,-460.0,0.00019614,2]
[374983646,1753489832997,-460.0,0.00019614,2]
[374983647,1753489833008,-460.0,0.00019614,2]
[374983648,1753489833018,-460.0,0.00019614,2]
[374983649,1753489833027,-460.0,0.00019614,2]
[374983650,1753489833036,-460.0,0.00019614,2]
[374983651,1753489833046,-460.0,0.00019614,2]
[374983652,1753489833055,-460.0,0.00019614,2]
[374983653,1753489833065,-621.47309753,0.00019614,2]
[374983654,1753489833074,-460.0,0.00019614,2]
[374983655,1753489833084,-460.0,0.00019614,2]
[374983656,1753489833094,-460.0,0.00019614,2]
[374983657,1753489833103,-460.0,0.00019614,2]
[374983658,1753489833113,-460.0,0.00019614,2]
[374983659,1753489833123,-468.97339429,0.00019614,2]
[374983660,1753489833132,-460.0,0.00019614,2]
[374983661,1753489833142,-460.0,0.00019614,2]
[374983662,1753489833151,-460.0,0.00019614,2]
[374983663,1753489833161,-460.0,0.00019614,2]
[374983664,1753489833171,-460.0,0.00019614,2]
[374983665,1753489833181,-460.0,0.00019614,2]
[374983666,1753489833191,-356.83087753,0.00019614,2]
[374983667,1753489833201,-460.0,0.00019614,2]
[374983668,1753489833210,-243.02,0.00019614,2]
[374983669,1753489833219,-460.0,0.00019614,2]
[374983670,1753489833228,-460.0,0.00019614,2]
[374983671,1753489833238,-460.0,0.00019614,2]
[374983672,1753489833247,-215.41350873,0.00019615,2]
[374983673,1753489833257,-460.0,0.00019615,2]
[374983674,1753489833267,-460.0,0.00019615,2]
[374983675,1753489833277,-494.30199203,0.00019615,2]
[374983676,1753489833288,-460.0,0.00019615,2]
[374983677,1753489833298,-460.0,0.00019615,2]
[374983678,1753489833307,-460.0,0.00019615,2]
[374983679,1753489833317,-465.17679717,0.00019615,2]
[374983680,1753489833329,-460.0,0.00019615,2]
[374983681,1753489833340,-460.0,0.00019615,2]
[374983682,1753489833351,-460.0,0.00019615,2]
[374983683,1753489833360,-460.0,0.00019615,2]
[374983684,1753489833370,-460.0,0.00019615,2]
[374983685,1753489833380,-460.0,0.00019615,2]
[374983686,1753489833390,-217.80732844,0.00019615,2]
[374983687,1753489833399,-460.0,0.00019615,2]
[374983688,1753489833409,-460.0,0.00019615,2]
[374983689,1753489833419,-460.0,0.00019615,2]
[374983690,1753489833428,-460.0,0.00019615,2]
[374983691,1753489833438,-460.0,0.00019615,2]
[374983692,1753489833455,-460.0,0.00019615,2]
[374983693,1753489833465,-460.0,0.00019615,2]
[374983694,1753489833474,-460.0,0.00019615,2]
[374983695,1753489833483,-460.0,0.00019615,2]
[374983696,1753489833493,-460.0,0.00019615,2]
[374983697,1753489833502,-460.0,0.00019615,2]
[374983698,1753489833512,-460.0,0.00019615,2]
[374983699,1753489833521,-460.0,0.00019615,2]
[374983700,1753489833530,-460.0,0.00019615,2]
[374983701,1753489833540,-460.0,0.00019615,2]
[374983702,1753489833549,-460.0,0.00019615,2]
[374983703,1753489833559,-460.0,0.00019615,2]
[374983704,1753489833568,-460.0,0.00019615,2]
[374983705,1753489833577,-516.06078218,0.00019615,2]
[374983706,1753489833587,-461.16638355,0.00019615,2]
[374983707,1753489833597,-460.0,0.00019615,2]
[374983708,1753489833607,-461.14878173,0.00019615,2]
[374983709,1753489833616,-461.24302644,0.00019615,2]
[374983710,1753489833625,-460.0,0.00019615,2]
[374983711,1753489833635,-460.0,0.00019615,2]
[374983712,1753489833644,-460.0,0.00019615,2]
[374983713,1753489833654,-1302.86,0.00019615,2]
[374983714,1753489833663,-460.0,0.00019615,2]
[374983715,1753489833673,-460.0,0.00019615,2]
[374983716,1753489833682,-460.0,0.00019615,2]
[374983717,1753489833691,-460.0,0.00019615,2]
[374983718,1753489833701,-460.0,0.00019615,2]
[374983719,1753489833710,-460.0,0.00019615,2]
[374983720,1753489833720,-500.0,0.00019615,2]
[374983721,1753489833729,-32205.57487358,0.00019616,2]
[374983722,1753489833739,-3615.94855005,0.00019713,2]
[374983723,1753489833818,-2609.10825542,0.00019713,2]
[374983724,1753489833828,-460.0,0.00019713,2]
[374983725,1753489833839,-460.0,0.00019713,2]
[374983726,1753489833849,-460.0,0.00019713,2]
[374983727,1753489833859,-460.0,0.00019713,2]
[374983728,1753489833868,-460.0,0.00019713,2]
[374983729,1753489833878,-460.0,0.00019713,2]
[374983730,1753489833888,-460.0,0.00019713,2]
[374983731,1753489833898,-460.0,0.00019713,2]
[374983732,1753489833908,-460.0,0.00019713,2]
[374983733,1753489833918,-460.0,0.00019713,2]
[374983734,1753489833927,-460.0,0.00019713,2]
[374983735,1753489833937,-460.0,0.00019713,2]
[374983736,1753489833947,-460.0,0.00019713,2]
[374983737,1753489833957,-460.0,0.00019713,2]
[374983738,1753489833966,-460.0,0.00019713,2]
[374983739,1753489833975,-460.0,0.00019713,2]
[374983740,1753489833984,-460.0,0.00019713,2]
[374983741,1753489833994,-460.0,0.00019713,2]
[374983742,1753489834003,-460.0,0.00019713,2]
[374983743,1753489834012,-460.0,0.00019713,2]
[374983744,1753489834022,-460.0,0.00019713,2]
[374983745,1753489834031,-460.0,0.00019713,2]
[374983746,1753489834046,-460.0,0.00019713,2]
[374983747,1753489834055,-460.0,0.00019713,2]
[374983748,1753489834065,-460.9512279,0.00019713,2]
[374983749,1753489834074,-460.0,0.00019713,2]
[374983750,1753489834087,-460.0,0.00019713,2]
[374983751,1753489834096,-460.0,0.00019713,2]
[374983752,1753489834106,-460.0,0.00019713,2]
[374983753,1753489834117,-160.64124358,0.00019713,2]
[374983754,1753489834127,-460.0,0.00019713,2]
[374983755,1753489834136,-460.0,0.00019713,2]
[374983756,1753489834145,-155.99601206,0.00019713,2]
[374983757,1753489834154,-460.0,0.00019713,2]
[374983758,1753489834164,-477.05854615,0.00019713,2]
[374983759,1753489834173,-460.0,0.00019713,2]
[374983760,1753489834183,-460.0,0.00019713,2]
[374983761,1753489834192,-460.0,0.00019713,2]
[374983762,1753489834202,-460.0,0.00019713,2]
[374983763,1753489834212,-460.0,0.00019713,2]
[374983764,1753489834222,-460.0,0.00019713,2]
[374983765,1753489834232,-460.0,0.00019713,2]
[374983766,1753489834241,-460.0,0.00019713,2]
[374983767,1753489834251,-460.0,0.00019713,2]
[374983768,1753489834260,-460.0,0.00019713,2]
[374983769,1753489834270,-460.0,0.00019713,2]
[374983770,1753489834399,-460.0,0.00019713,2]
[374983771,1753489834409,-460.0,0.00019713,2]
[374983772,1753489834419,-460.0,0.00019716,2]
[374983773,1753489834428,-460.0,0.00019716,2]
[374983774,1753489834439,-460.0,0.00019716,2]
[374983775,1753489834449,-460.0,0.00019716,2]
[374983776,1753489834458,-460.0,0.00019716,2]
[374983777,1753489834467,-460.0,0.00019716,2]
[374983778,1753489834477,-460.0,0.00019716,2]
[374983779,1753489834487,-460.0,0.00019716,2]
[374983780,1753489834497,-460.0,0.00019716,2]
[374983781,1753489834507,-460.0,0.00019716,2]
[374983782,1753489834516,-460.0,0.00019716,2]
[374983783,1753489834525,-460.0,0.00019716,2]
[374983784,1753489834534,-460.0,0.00019716,2]
[374983785,1753489834544,-460.0,0.00019716,2]
[374983786,1753489834554,-460.0,0.00019716,2]
[374983787,1753489834563,-464.05545929,0.00019716,2]
[374983788,1753489834574,-460.0,0.00019716,2]
[374983789,1753489834585,-460.0,0.00019716,2]
[374983790,1753489834594,-460.0,0.00019716,2]
[374983791,1753489834604,-460.0,0.00019716,2]
[374983792,1753489834613,-460.0,0.00019716,2]
[374983793,1753489834623,-460.0,0.00019716,2]
[374983794,1753489834634,-460.0,0.00019716,2]
[374983795,1753489834643,-460.0,0.00019716,2]
[374983796,1753489834653,-460.0,0.00019716,2]
[374983797,1753489834663,-460.0,0.00019716,2]
[374983798,1753489834673,-460.0,0.00019716,2]
[374983799,1753489834685,-460.0,0.00019716,2]
[374983800,1753489834697,-460.0,0.00019716,2]
[374983801,1753489834706,-460.0,0.00019716,2]
[374983802,1753489834717,-460.0,0.00019716,2]
[374983803,1753489834728,-460.0,0.00019716,2]
[374983804,1753489834737,-460.0,0.00019716,2]
[374983805,1753489834748,-267.22777333,0.00019716,2]
[374983806,1753489834758,-460.0,0.00019716,2]
[374983807,1753489834767,-298.13361043,0.00019716,2]
[374983808,1753489834777,-460.0,0.00019716,2]
[374983809,1753489834786,-460.0,0.00019716,2]
[374983810,1753489834797,-460.0,0.00019716,2]
[374983811,1753489834807,-460.0,0.00019716,2]
[374983812,1753489834817,-460.0,0.00019716,2]
[374983813,1753489834828,-460.0,0.00019716,2]
[374983814,1753489834840,-460.0,0.00019716,2]
[374983815,1753489834849,-460.0,0.00019716,2]
[374983816,1753489834858,-460.0,0.00019716,2]
[374983817,1753489834868,-460.0,0.00019716,2]
[374983818,1753489834878,-460.0,0.00019716,2]
[374983819,1753489834887,-460.0,0.00019716,2]
[374983820,1753489834897,-460.0,0.00019716,2]
[374983821,1753489834906,-460.0,0.00019716,2]
[374983822,1753489834915,-460.0,0.00019716,2]
[374983823,1753489834925,-460.0,0.00019716,2]
[374983824,1753489834934,-460.0,0.00019716,2]
[374983825,1753489834944,-460.0,0.00019716,2]
[374983826,1753489834955,-460.0,0.00019716,2]
[374983827,1753489834965,-460.0,0.00019717,2]
[374983828,1753489834974,-460.0,0.00019717,2]
[374983829,1753489834984,-460.0,0.00019717,2]
[374983830,1753489834994,-460.0,0.00019717,2]
[374983831,1753489835003,-460.0,0.00019717,2]
[374983832,1753489835012,-460.0,0.00019717,2]
[374983833,1753489835022,-506.2456732,0.00019773,2]
[374983834,1753489835032,-500.0,0.00019773,2]
[374983835,1753489835042,-606.33937861,0.00019773,2]
[374983836,1753489835054,-2180.69588468,0.00019789,2]
[374983837,1753489835065,-500.0,0.00019873,2]
[374983838,1753489835075,-500.0,0.00019873,2]
[374983839,1753489835085,-500.0,0.00019873,2]
[374983840,1753489835095,-500.0,0.00019873,2]
[374983841,1753489835105,-500.0,0.00019873,2]
[374983842,1753489835114,-460.0,0.00019886,2]
[374983843,1753489835124,-460.0,0.00019886,2]
[374983844,1753489835133,-460.0,0.00019886,2]
[374983845,1753489835142,-325.24744785,0.00019886,2]
[374983846,1753489835323,425.21216,0.00027,120]
[374983850,1753489837642,-635.99214471,0.00019613,2]
[374983851,1753489837653,-460.0,0.00019614,2]
[374983852,1753489837664,-134.75255215,0.00019886,2]
[374983853,1753489837674,-460.0,0.00019887,2]
[374983854,1753489837685,-1275.77,0.00019887,2]
[374983855,1753489837695,-382.53478389,0.00019887,2]
[374983856,1753489837707,-346.68521611,0.00019887,2]
[374983857,1753489837718,-66.58168719,0.00019887,2]
[374983858,1753489837731,-285.28800005,0.00019887,2]
[374983859,1753489837812,-334.37031276,0.00019887,2]
[374983860,1753489837823,-551.25,0.00019887,2]
[374983861,1753489837835,-460.0,0.00019887,2]
[374983862,1753489837845,-460.0,0.00019887,2]
[374983863,1753489837856,-460.0,0.00019887,2]
[374983864,1753489837865,-460.0,0.00019887,2]
[374983865,1753489837875,-460.0,0.00019887,2]
[374983866,1753489837885,-460.0,0.00019888,2]
[374983867,1753489837895,-460.0,0.00019888,2]
[374983868,1753489837904,-460.0,0.00019888,2]
[374983869,1753489837914,-460.0,0.00019888,2]
[374983870,1753489837923,-344.96,0.00019888,2]
[374983871,1753489837935,-460.0,0.00019888,2]
[374983872,1753489837945,-460.0,0.00019888,2]
[374983873,1753489837955,-460.0,0.00019888,2]
[374983874,1753489837964,-460.0,0.00019888,2]
[374983875,1753489837974,-460.0,0.00019888,2]
[374983876,1753489837983,-460.0,0.00019888,2]
[374983877,1753489837993,-460.0,0.00019888,2]
[374983878,1753489838003,-477.47,0.00019888,2]
[374983879,1753489838013,-460.0,0.00019888,2]
[374983880,1753489838023,-460.0,0.00019889,2]
[374983881,1753489838033,-460.0,0.00019889,2]
[374983882,1753489838046,-460.0,0.00019889,2]
[374983883,1753489838058,-460.0,0.00019889,2]
[374983884,1753489838069,-460.0,0.00019889,2]
[374983885,1753489838080,-460.0,0.00019889,2]
[374983886,1753489838093,-1302.86,0.00019889,2]
[374983887,1753489838102,-460.0,0.00019889,2]
[374983888,1753489838112,-460.0,0.00019889,2]
[374983889,1753489838123,-460.0,0.00019889,2]
[374983890,1753489838134,-455940.10814899,0.000199,2]
[374983891,1753489838143,-460.0,0.00019987,2]
[374983892,1753489838152,-460.0,0.00019987,2]
[374983893,1753489838162,-460.0,0.00019987,2]
[374983894,1753489838171,-460.0,0.00019987,2]
[374983895,1753489838179,-460.0,0.00019987,2]
[374983896,1753489838188,-460.0,0.00019987,2]
[374983897,1753489838196,-460.0,0.00019987,2]
[374983898,1753489838205,-460.0,0.00019987,2]
[374983899,1753489838215,-460.0,0.00019987,2]
[374983900,1753489838224,-460.0,0.00019987,2]
[374983901,1753489838233,-460.0,0.00019987,2]
[374983902,1753489838243,-460.0,0.00019987,2]
[374983903,1753489838252,-460.0,0.00019987,2]
[374983904,1753489838262,-460.0,0.00019987,2]
[374983905,1753489838271,-443.06005853,0.00019987,2]
[374983906,1753489838281,-460.0,0.00019987,2]
[374983907,1753489838291,-460.0,0.00019987,2]
[374983908,1753489838301,-460.0,0.00019987,2]
[374983909,1753489838311,-460.0,0.00019987,2]
[374983910,1753489838320,-460.0,0.00019987,2]
[374983911,1753489838332,-460.0,0.00019987,2]
[374983912,1753489838343,-460.0,0.00019987,2]
[374983913,1753489838352,-460.0,0.00019987,2]
[374983914,1753489838362,-564.11,0.00019987,2]
[374983915,1753489838372,-260.385876,0.00019987,2]
[374983916,1753489838381,-460.0,0.00019987,2]
[374983917,1753489838391,-460.0,0.0001999,2]
[374983918,1753489838401,-460.0,0.0001999,2]
[374983919,1753489838410,-460.0,0.0001999,2]
[374983920,1753489838420,-460.0,0.0001999,2]
[374983921,1753489838430,-460.0,0.0001999,2]
[374983922,1753489838439,-151.0,0.00019991,2]
[374983923,1753489838449,-151.0,0.00019991,2]
[374983924,1753489838459,-183.11,0.00020106,2]
[374983925,1753489838468,-332.85,0.00020122,2]
[374983926,1753489838477,-460.0,0.0002016,2]
[374983927,1753489838486,-413.65,0.0002016,2]
[374983928,1753489838496,-460.0,0.0002016,2]
[374983929,1753489838505,-460.0,0.0002016,2]
[374983930,1753489838515,-460.0,0.00020161,2]
[374983931,1753489838524,-1275.77,0.00020161,2]
[374983932,1753489838533,-729.22,0.00020161,2]
[374983933,1753489838542,-686.24,0.00020161,2]
[374983934,1753489838552,-551.25,0.00020161,2]
[374983935,1753489838561,-460.0,0.00020161,2]
[374983936,1753489838570,-460.0,0.00020161,2]
[374983937,1753489838579,-460.0,0.00020161,2]
[374983938,1753489838590,-460.0,0.00020161,2]
[374983939,1753489838599,-460.0,0.00020161,2]
[374983940,1753489838610,-460.0,0.00020162,2]
[374983941,1753489838619,-460.0,0.00020162,2]
[374983942,1753489838628,-460.0,0.00020162,2]
[374983943,1753489838638,-460.0,0.00020162,2]
[374983944,1753489838648,-460.0,0.00020162,2]
[374983945,1753489838657,-460.0,0.00020162,2]
[374983946,1753489838666,-460.0,0.00020162,2]
[374983947,1753489838675,-460.0,0.00020162,2]
[374983948,1753489838685,-460.0,0.00020162,2]
[374983949,1753489838694,-460.0,0.00020162,2]
[374983950,1753489838704,-460.0,0.00020162,2]
[374983951,1753489838714,-448.49853543,0.00020163,2]
[374983952,1753489838723,-460.0,0.00020163,2]
[374983953,1753489838732,-460.0,0.00020163,2]
[374983954,1753489838741,-460.0,0.00020163,2]
[374983955,1753489838751,-460.0,0.00020163,2]
[374983956,1753489838760,-1302.86,0.00020163,2]
[374983957,1753489838769,-460.0,0.00020163,2]
[374983958,1753489838778,-460.0,0.00020163,2]
[374983959,1753489838787,-460.0,0.00020163,2]
[374983960,1753489838797,-468.29342776,0.00020261,2]
[374983961,1753489838806,-460.0,0.00020261,2]
[374983962,1753489838816,-460.0,0.00020261,2]
[374983963,1753489838825,-460.0,0.00020261,2]
[374983964,1753489838835,-460.0,0.00020261,2]
[374983965,1753489838844,-460.0,0.00020261,2]
[374983966,1753489838853,-460.0,0.00020261,2]
[374983967,1753489838863,-460.0,0.00020261,2]
[374983968,1753489838872,-460.0,0.00020261,2]
[374983969,1753489838882,-460.0,0.00020261,2]
[374983970,1753489838891,-460.0,0.00020261,2]
[374983971,1753489838900,-460.0,0.00020261,2]
[374983972,1753489838910,-460.0,0.00020261,2]
[374983973,1753489838920,-460.0,0.00020261,2]
[374983974,1753489838929,-460.0,0.00020261,2]
[374983975,1753489838938,-460.0,0.00020261,2]
[374983976,1753489838947,-564.11,0.00020261,2]
[374983977,1753489838957,-460.0,0.00020261,2]
[374983978,1753489838966,-151.0,0.00020262,2]
[374983979,1753489838975,-151.0,0.00020262,2]
[374983980,1753489838985,-460.0,0.00020264,2]
[374983981,1753489838994,-460.0,0.00020264,2]
[374983982,1753489839003,-460.0,0.00020264,2]
[374983983,1753489839012,-151.0,0.00020265,2]
[374983984,1753489839022,-151.0,0.00020265,2]
[374983985,1753489839031,-489.52497536,0.00020321,2]
[374983986,1753489839040,-500.0,0.00020421,2]
[374983987,1753489839054,-460.0,0.00020434,2]
[374983988,1753489839063,-460.0,0.00020434,2]
[374983989,1753489839073,-506.32650599,0.00020435,2]
[374983990,1753489839082,-1275.77,0.00020435,2]
[374983991,1753489839093,-729.22,0.00020435,2]
[374983992,1753489839104,-686.24,0.00020435,2]
[374983993,1753489839114,-551.25,0.00020435,2]
[374983994,1753489839123,-460.0,0.00020435,2]
[374983995,1753489839132,-460.0,0.00020435,2]
[374983996,1753489839142,-460.0,0.00020435,2]
[374983997,1753489839151,-460.0,0.00020435,2]
[374983998,1753489839161,-358.51447499,0.00020435,2]
[374983999,1753489839171,-607.63852178,0.00020436,2]
[374984000,1753489839181,-515.91,0.00020436,2]
[374984001,1753489839191,-460.0,0.00020436,2]
[374984002,1753489839201,-460.0,0.00020436,2]